Cogmind - Beta 16 @@@ ROGUE MODE // 2026.01.08 @ 22:59:13 Player: Bity Result: Destroyed by B-75 Beast with Heavy Plasma Cannon Performance ------------- Evolutions (3) 1500 Regions Visited (9) 1800 Robots Destroyed (155) 775 Value Destroyed (6259) 6259 Prototype IDs (8) 160 Alien Tech Used (0) 0 Bonus (1632) 1632 TOTAL SCORE: 12126 Bonus ------- High Alert Combat Kills 336 Follower Combat Kills 596 Entered Garrisons 200 Used RIF Installer 500 Cogmind --------- Core Integrity 0/700 Matter 101/300 Energy 284/290 System Corruption 1% Temperature Cool (12) Movement Walking (470) Ox5 Location -7/Lower Caves Parts ------- > --- POWER (1) -------- Improved Deuterium Engine > --- PROPULSION (7) --- Carbon-fiber Leg Improved Cesium-ion Thruster > --- UTILITY (3) ------ Cargo Storage Unit Gravity Neutralizer > --- WEAPON (2) ------- Flak Gun Heavy Flak Cannon > --- INVENTORY (30) --- Reinforced Deuterium Engine Reinforced Deuterium Engine Light Fission Core Neutrino Core Improved Cooling System Medium Matter Pod (100) Improved Terrain Scanner Improved Kinecellerator Relay Coupler [NC] (26) Relay Coupler [NC] (23) Relay Coupler [Sentry] (19) Relay Coupler [Specialist] (23) Relay Coupler [Heavy] (15) System Restoration Module Improved Recalibrator Heart of Steel Heavy Laser PD Laser Hypervelocity Coil Gun Remote Datajack Plasma Cutter Chainsword Ripper Makeshift Spear Peak State ------------ > --- POWER ------------ Light Antimatter Reactor > --- PROPULSION ------- Improved Heavy Treads Improved Heavy Treads Improved Heavy Treads Improved Cesium-ion Thruster > --- UTILITY ---------- Cargo Storage Unit Hardlight Generator > --- WEAPON ----------- Heavy Machine Gun Hypervelocity Coil Gun > --- INVENTORY -------- Improved Deuterium Engine Reinforced Deuterium Engine Reinforced Deuterium Engine Micro Nuclear Core Improved Heavy Treads Improved Cooling System Medium Matter Pod Gravity Neutralizer Improved Kinecellerator Relay Coupler [NC] Relay Coupler [NC] Relay Coupler [Sentry] Relay Coupler [Specialist] Relay Coupler [Behemoth] System Restoration Module Improved Recalibrator Heart of Steel Heavy Laser PD Laser Improved EM Pulse Cannon Improved Grenade Launcher Missile Launcher Remote Datajack Plasma Cutter Chainsword [Rating: 84] Favorites ----------- Power Improved Deuterium Engine Engine Improved Deuterium Engine Power Core Neutrino Core Reactor Light Antimatter Reactor Propulsion Improved Heavy Treads Treads Improved Heavy Treads Leg Aluminum Leg Wheel Wheel Hover Unit Aerolev Unit Flight Unit Improved Cesium-ion Thruster Utility Cargo Storage Unit Device Improved Kinecellerator Storage Cargo Storage Unit Processor Core Analyzer Hackware Relay Coupler [Behemoth] Protection Hardened Light Armor Plating Weapon Chainsword Energy Gun Particle Gun Energy Cannon Improved EM Pulse Cannon Ballistic Gun Flak Gun Ballistic Cannon Heavy Flak Cannon Launcher Grenade Launcher Special Weapon Remote Datajack Slashing Weapon Chainsword Piercing Weapon Makeshift Spear Build | -11 -10 -10 -9 -8 -7 -7 -7 -7 -7 ------- Run | Yrd Mat Min Mat Mat Fac Gar Fac Low Low Slots Evolved 6 | . . . 2 2 2 . . . . Power . | . . . . . . . . . . Propulsion 5 | . . . 1 2 2 . . . . Utility 1 | . . . 1 . . . . . . Weapon . | . . . . . . . . . . Parts Attached 124 | 1 20 1 13 22 14 31 2 6 14 Power 18 | . 5 . 2 3 1 4 . . 3 Engine 14 | . 5 . 2 2 1 2 . . 2 Core 3 | . . . . 1 . 1 . . 1 Reactor 1 | . . . . . . 1 . . . Propulsion 43 | . 8 . 4 10 5 9 . 3 4 Treads 18 | . 1 . . 7 1 4 . 3 2 Leg 11 | . 2 . 4 . . 4 . . 1 Wheel 11 | . 5 . . 3 1 1 . . 1 Hover 1 | . . . . . 1 . . . . Flight 2 | . . . . . 2 . . . . Utility 25 | 1 2 . 2 5 5 7 . 1 2 Device 15 | 1 . . 2 2 4 4 . 1 1 Storage 4 | . 1 . . 2 . 1 . . . Processor 4 | . . . . 1 1 2 . . . Hackware 1 | . . . . . . . . . 1 Protection 1 | . 1 . . . . . . . . Artifact . | . . . . . . . . . . Weapon 38 | . 5 1 5 4 3 11 2 2 5 Energy Gun 6 | . 3 . 1 . . 1 . . 1 Energy Cannon 5 | . . . 2 2 . 1 . . . Ballistic Gun 13 | . 1 . . 2 . 7 2 . 1 Ballistic Cannon 5 | . . . 1 . 2 1 . 1 . Launcher 3 | . . 1 . . . 1 . 1 . Special Weapon 2 | . 1 . . . . . . . 1 Impact Weapon . | . . . . . . . . . . Slashing Weapon 3 | . . . 1 . 1 . . . 1 Piercing Weapon 1 | . . . . . . . . . 1 Special Melee Weapon . | . . . . . . . . . . Unidentified Prototypes 5 | . . . . 1 2 2 . . . Parts Lost 51 | . 8 . 7 5 2 12 1 9 7 Power 7 | . 2 . 1 . . 1 . 1 2 Propulsion 27 | . 2 . 3 4 2 7 . 4 5 Utility 6 | . 1 . 1 1 . 2 . 1 . Weapon 11 | . 3 . 2 . . 2 1 3 . Highest Loss Streak 9 | . 7 . 2 1 2 3 1 9 2 To Critical Strikes 4 | . 2 . . . . 1 . 1 . Average Backups 22 | 6 7 10 19 20 24 23 26 24 25 Power 4 | 1 1 1 3 5 4 3 5 4 4 Propulsion 2 | 4 3 3 5 6 4 3 1 . . Utility 8 | . . 4 4 3 7 9 12 11 11 Weapon 4 | 1 1 2 5 4 6 5 5 4 5 Tool/Special . | . . . . . . . . . . Unused Backups 67 | 6 5 . 3 21 5 11 1 . 15 Power 17 | 1 1 . . 8 3 . . . 4 Propulsion 17 | 2 2 . 2 6 . 5 . . . Utility 17 | 1 . . . 3 . 5 . . 8 Weapon 14 | 2 2 . 1 4 2 1 1 . 1 Tool/Special 2 | . . . . . . . . . 2 Average Slot Usage (%) 76 | . 91 100 89 96 99 77 68 50 70 Engine 5 | . 12 14 10 6 6 4 . 5 . Core 1 | . . . . 2 . . . . 6 Treads 15 | . 2 . . 25 24 20 23 10 17 Leg 4 | . 16 . 8 9 . 3 . . 6 Wheel 7 | . 7 28 21 7 17 6 . . 2 Flight 1 | . . . . . 2 1 7 . 4 Device 7 | . 8 . 13 11 7 3 7 6 6 Storage 8 | . 14 14 11 9 7 7 7 7 7 Processor 3 | . . . . 6 7 9 . . . Protection 1 | . 3 14 6 . . . . . . Energy Gun 2 | . 20 16 5 . . . . . . Energy Cannon 2 | . . . 2 7 8 . . 3 . Ballistic Gun 4 | . 4 . . 9 . 8 4 3 3 Ballistic Cannon 2 | . . . 4 . 6 . 4 2 6 Slashing Weapon 2 | . . . 3 . . 3 5 4 3 Peak Build Rating 84 | 7 11 11 21 35 45 82 83 84 67 Average Rating 46 | 6 7 10 16 28 41 65 81 53 60 On Entrance 34 | 6 7 11 11 15 32 42 81 83 53 Avg Prop Armor Cover (%) 15 | . 12 . . 20 13 17 . . 12 Naked Turns . | . . . . . . . . . . Heaviest Build 171 | 11 94 94 101 109 108 169 169 168 171 Greatest Support 257 | 20 32 20 42 110 88 257 225 253 131 Greatest Overweight (x) 48 | . 4 4 3 9 4 9 . 2 48 Average Overweight (x) 1 | . . 4 2 2 2 . . 1 4 Largest Inventory Capacity 30 | 8 25 25 25 25 25 30 30 30 30 Average Capacity 26 | 8 8 25 25 22 25 26 30 30 30 Most Carried 30 | 7 9 12 25 25 25 30 30 30 30 Average Carried 24 | 6 7 11 20 21 24 26 29 27 29 Final Capacity 30 | 8 25 25 25 25 25 30 30 30 30 Final Carried 30 | 7 9 12 25 22 25 28 30 30 28 Class Distribution -------------------- 46% | Bothacker-Mutant 34% | Mutant 16% | Scavenger-Mutant Dominant Class ---------------- Mutant | -10/Materials Mutant | -10/Mines Scavenger-Mutant | -9/Materials Mutant | -8/Materials Mutant | -7/Factory Scavenger-Mutant | -7/Garrison Bothacker-Mutant | -7/Factory Bothacker-Mutant | -7/Lower Caves Bothacker-Mutant | -7/Lower Caves Resources | -11 -10 -10 -9 -8 -7 -7 -7 -7 -7 ----------- Run | Yrd Mat Min Mat Mat Fac Gar Fac Low Low Matter Collected 4295 | 222 284 132 210 794 371 1436 56 515 275 Remotely 56 | . . . . . . 56 . . . Salvage Created 6866 | 124 404 140 708 1630 532 1951 104 786 487 Parts 363 | 10 29 12 48 89 32 77 4 38 24 Haulers Intercepted 7 | . 1 . 1 3 2 . . . . Recyclers Shooed . | . . . . . . . . . . Parts Field Recycled . | . . . . . . . . . . Retrieved Matter . | . . . . . . . . . . Parts Self-Destructed 34 | . . . . . . . . 30 4 Prevented 1 | . . . . . . . . 1 . Parts Restored . | . . . . . . . . . . Kills | -11 -10 -10 -9 -8 -7 -7 -7 -7 -7 ------- Run | Yrd Mat Min Mat Mat Fac Gar Fac Low Low Combat Hostiles Destroyed 119 | . 8 7 20 30 8 23 2 15 6 Melee 4 | . . . 3 . . 1 . . . Guns 62 | . 7 3 5 11 . 22 1 10 3 Cannons 39 | . 1 . 6 19 8 . 1 1 3 AOE 14 | . . 4 6 . . . . 4 . Classes Destroyed 15 | 2 4 1 3 2 1 1 . 1 . Worker 6 | . . 1 . 3 2 . . . . Builder 2 | . . . 1 . 1 . . . . Tunneler 4 | 3 1 . . . . . . . . Hauler 7 | . 1 . 1 3 2 . . . . Recycler 4 | 1 1 . . . 2 . . . . Watcher 11 | . 2 . 2 4 2 1 . . . Swarmer 32 | . 5 3 8 7 . 6 . 3 . Grunt 46 | . 3 4 6 13 2 8 1 4 5 Brawler 6 | . . . . 2 . . . 2 2 Duelist 6 | . . . 1 1 1 . . 3 . Sentry 18 | . . . 5 6 . 4 1 1 1 Specialist 2 | . . . . . . 2 . . . Hunter 4 | . . . . 1 1 1 . 1 . Programmer 7 | . . . . . 4 2 . 1 . Samaritan 9 | . . . . . . . . 4 5 Best Kill Streak 7 | 2 4 4 6 7 5 6 1 5 3 Combat Bots Only 7 | . 4 3 5 7 4 6 1 5 3 Max Kills in Single Turn 3 | 1 1 1 3 1 3 1 1 2 1 Gunslinging . | . . . . . . . . . . Exploded 3 | . . 1 3 . . . . 2 . Melee 1 | . . . 1 . . 1 . . . Uniques/NPCs Destroyed . | . . . . . . . . . . Combat | -11 -10 -10 -9 -8 -7 -7 -7 -7 -7 -------- Run | Yrd Mat Min Mat Mat Fac Gar Fac Low Low Hostile Shots Fired 978 | . 103 18 105 177 47 260 63 106 99 Missed 291 | . 25 4 25 49 14 84 24 23 43 Hits 687 | . 78 14 80 128 33 176 39 83 56 Melee 21 | . . . 1 . . . . 20 . Projectile 666 | . 78 14 79 128 33 176 39 63 56 Critical Strikes 28 | . 2 . 5 7 2 2 . 5 5 Part Disruptions 1 | . . . . . 1 . . . . Damage Taken 9940 | . 870 185 1031 1695 567 2062 458 1841 1231 Core 1373 | . 180 54 238 196 28 261 21 148 247 Absorbed by Shields 292 | . . . . . . 4 176 112 . Regen/Repaired (Parts) 178 | . . . . 31 147 . . . . Core Remaining (%) 52 | 100 . 6 40 64 . . . . . Volleys Fired 442 | 12 56 12 43 110 44 85 14 36 30 Largest 2 | 2 2 2 2 2 2 2 2 2 2 Hottest 140 | 60 140 130 130 136 136 105 65 104 72 Shots Fired 805 | 24 88 23 77 220 88 154 19 63 49 Gun 480 | 24 81 13 40 110 . 136 11 46 19 Cannon 286 | . . . 34 110 88 13 8 11 22 Launcher 24 | . . 10 3 . . 5 . 6 . Special 15 | . 7 . . . . . . . 8 Kinetic 475 | 12 26 . 10 110 67 143 19 47 41 Thermal 262 | 12 62 13 44 110 21 . . . . Explosive 24 | . . 10 3 . . 5 . 6 . Electromagnetic 36 | . . . 20 . . 6 . 10 . Robot Hit Streak 19 | 9 11 6 8 15 7 14 2 19 12 Robot Miss Streak 8 | 2 4 1 3 6 6 7 2 3 8 Penetration Max 1 | . . . . . . 1 . 1 . Secondary Targets 12 | . . . 2 2 . 4 1 3 . Max Gunslinging Chain 1 | . . . 1 1 . 1 1 1 . Shots Hit Robots 593 | 17 52 12 53 133 55 159 8 46 58 Core Hits 410 | 6 21 13 33 60 46 139 4 41 47 Critical Kills 5 | . . . . . . . . 5 . Critical Parts Destroyed 7 | . 1 . . . . 1 2 3 . Critical Strikes 17 | . 1 . 1 . . 4 2 8 1 Destroy 12 | . 1 . . . . 1 2 8 . Blast 1 | . . . 1 . . . . . . Sever 4 | . . . . . . 3 . . 1 Melee Attacks 104 | . . . 8 . 2 74 1 3 16 Impact . | . . . . . . . . . . Slashing 103 | . . . 8 . 2 74 1 3 15 Piercing 1 | . . . . . . . . . 1 Sneak Attacks 13 | . . . . . . 2 . 2 9 Combat Hostiles . | . . . . . . . . . . Follow-up Attacks 1 | . . . . . . . . . 1 Damage Inflicted 15616 | 172 577 401 1376 2763 1557 5192 151 1680 1747 Guns 5168 | 172 553 133 384 1191 . 1849 109 369 408 Cannons 4303 | . . . 531 1572 1196 201 42 184 577 Explosions 2202 | . . 268 250 . 361 357 . 966 . Melee 3860 | . . . 211 . . 2726 . 161 762 Ramming 59 | . . . . . . 59 . . . Kinetic 5946 | 74 173 . 185 1191 840 1978 151 369 985 Thermal 3226 | 98 404 133 565 1572 356 . . 98 . Explosive 1987 | . . 268 133 . 361 357 . 868 . Electromagnetic 538 | . . . 282 . . 72 . 184 . Impact . | . . . . . . . . . . Slashing 3834 | . . . 211 . . 2726 . 161 736 Piercing 26 | . . . . . . . . . 26 Highest Corruption 5 | . . . . . 5 2 1 1 1 Average Corruption 1 | . . . . . 3 1 1 1 1 Corruption Purged 5 | . . . . . 3 2 . . . Corruption Blocked . | . . . . . . . . . . Effects 71 | . . . . . 21 13 2 21 14 Message Errors 15 | . . . . . 4 1 . 4 6 Matter Fused 23 | . . . . . 8 4 1 6 4 Heat Flow Errors 5 | . . . . . 1 2 . 2 . Energy Discharges 5 | . . . . . 1 . . 2 2 Parts Rejected 1 | . . . . . . 1 . . . Parts Fused 1 | . . . . . . 1 . . . Data Loss (minor) 5 | . . . . . 2 1 . 2 . Data Loss (major) 6 | . . . . . 1 1 . 3 1 Misfires 9 | . . . . . 3 2 1 2 1 Alerts 1 | . . . . . 1 . . . . Overload Shots . | . . . . . . . . . . Overflow Damage 408 | . . 2 17 29 59 101 . 118 82 Projectiles 104 | . . . 17 29 38 . . 20 . Explosions 66 | . . 2 . . 21 . . 43 . Melee 238 | . . . . . . 101 . 55 82 Knockbacks 29 | . . . 2 . 21 1 . . 5 Impact 1 | . . . . . . 1 . . . Kinetic 25 | . . . 2 . 18 . . . 5 Secondary 3 | . . . . . 3 . . . . Self-Inflicted Damage 279 | . . 22 43 . 67 7 . 140 . Shots 8 | . . 1 1 . 1 1 . 4 . Rammed 16 | . . . . . . 16 . . . Targets Rammed 16 | . . . . . . 16 . . . Kicked . | . . . . . . . . . . Crushed . | . . . . . . . . . . Highest Temperature 375 | 60 207 285 375 102 249 224 27 260 313 Average Temperature 76 | 24 68 93 133 22 129 41 10 70 63 Received Heat Transfer 2953 | . 120 60 354 738 45 429 139 318 750 Effects 4 | . . . 4 . . . . . . Energy Bleed 2 | . . . 2 . . . . . . Interference 1 | . . . 1 . . . . . . Damage (minor) 1 | . . . 1 . . . . . . Siege Activations . | . . . . . . . . . . Martial Activations . | . . . . . . . . . . Shielding Activations . | . . . . . . . . . . Robots Disrupted . | . . . . . . . . . . Combat Hostiles . | . . . . . . . . . . Robots Corrupted . | . . . . . . . . . . Combat Hostiles . | . . . . . . . . . . Parts Fried . | . . . . . . . . . . Impact Corruptions . | . . . . . . . . . . Robots Melted . | . . . . . . . . . . Combat Hostiles . | . . . . . . . . . . Parts Melted 15 | . 2 . 2 6 4 . . 1 . Heat Transferred 5563 | 225 920 333 877 2590 518 . . 100 . Parts Sabotaged . | . . . . . . . . . . Parts Stolen . | . . . . . . . . . . Parts Stripped . | . . . . . . . . . . Power Chain Reactions 4 | . . . 3 . . . . 1 . Alert | -11 -10 -10 -9 -8 -7 -7 -7 -7 -7 ------- Run | Yrd Mat Min Mat Mat Fac Gar Fac Low Low Maximum Alert Level 5 | . . . 1 1 1 5 4 . . Low Security (%) 50 | 100 100 100 74 47 91 4 . . . Level 1 18 | . . . 25 52 8 14 . . . Level 2 7 | . . . . . . 26 . . . Level 3 9 | . . . . . . 20 46 . . Level 4 8 | . . . . . . 17 53 . . Level 5 4 | . . . . . . 16 . . . High Security . | . . . . . . . . . . Max Security . | . . . . . . . . . . Peak Influence 2075 | 5 42 150 255 389 296 2075 1378 . . Initial 1089 | . . . 33 83 169 198 1089 . . Average 420 | 2 7 67 157 198 67 915 1191 . . Influence Increases 5661 | 20 275 270 610 917 539 1997 513 377 143 Destroy 0b10 Robot/C 2680 | . 160 140 400 600 160 640 140 320 120 Destroy 0b10 Robot/NC 240 | 20 25 5 20 50 45 60 10 5 . Destroy Leader 514 | . 36 20 106 144 66 50 42 30 20 Allied During Kill 193 | . . . . . . 112 71 7 3 Successful Hack 200 | . 36 . 13 19 63 49 20 . . Disable Machine 510 | . 15 . 45 45 180 30 195 . . Anti-Garrison Action 900 | . . . . . . 900 . . . Destroy Structure 244 | . 3 60 26 14 25 81 35 . . Lose Combat Pursuer 180 | . . 45 . 45 . 75 . 15 . Influence Decreases 5661 | 20 275 182 499 743 628 206 1278 1312 518 Entered New Map 2004 | . . . 55 116 204 86 986 485 72 Time Decay 3191 | 20 189 182 374 577 424 . 262 737 426 Lost Part 436 | . 76 . 70 50 . 120 10 90 20 Lost Ally 30 | . 10 . . . . . 20 . . Squads Dispatched 13 | . . 1 3 3 3 . 3 . . Investigation 1 | . . . 1 . . . . . . Extermination 4 | . . . . . 3 . 1 . . Reinforcement 5 | . . . 2 2 . . 1 . . Assault 2 | . . 1 . . . . 1 . . Garrison 1 | . . . . 1 . . . . . Intercept . | . . . . . . . . . . Searches Triggered . | . . . . . . . . . . Construction Impeded . | . . . . . . . . . . Haulers Reinforced . | . . . . . . . . . . Active Scanning Responses . | . . . . . . . . . . Cargo Convoy Interrupts . | . . . . . . . . . . Stealth | -11 -10 -10 -9 -8 -7 -7 -7 -7 -7 --------- Run | Yrd Mat Min Mat Mat Fac Gar Fac Low Low Distress Signals 8 | . 3 . 1 3 . 1 . . . Communications Jammed . | . . . . . . . . . . Distress Signals . | . . . . . . . . . . Times Spotted 191 | . 16 12 24 50 12 35 15 16 11 Peak Tracking Total 9 | . 7 4 5 6 4 4 7 9 4 Tactical Retreats 9 | . . 2 . 3 . 3 . 1 . Traps | -11 -10 -10 -9 -8 -7 -7 -7 -7 -7 ------- Run | Yrd Mat Min Mat Mat Fac Gar Fac Low Low Traps Triggered 8 | . . . 1 . 2 4 1 . . Indirectly . | . . . . . . . . . . Trap Hack Attempts . | . . . . . . . . . . Triggered . | . . . . . . . . . . Disarmed . | . . . . . . . . . . Reprogrammed . | . . . . . . . . . . Reused . | . . . . . . . . . . Traps Extracted . | . . . . . . . . . . Installed . | . . . . . . . . . . Triggered . | . . . . . . . . . . Machines | -11 -10 -10 -9 -8 -7 -7 -7 -7 -7 ---------- Run | Yrd Mat Min Mat Mat Fac Gar Fac Low Low Machines Disabled 41 | . 1 . 3 3 12 7 13 2 . Max in Single Turn 6 | . 1 . 1 1 6 1 1 2 . Garrison Relay 5 | . . . . . . 5 . . . Machines Repaired . | . . . . . . . . . . Machines Dismantled . | . . . . . . . . . . Machines Sabotaged . | . . . . . . . . . . Overloaded Fab Kills . | . . . . . . . . . . Hacking | -11 -10 -10 -9 -8 -7 -7 -7 -7 -7 --------- Run | Yrd Mat Min Mat Mat Fac Gar Fac Low Low Machines Accessed 40 | . 4 . 2 9 11 5 5 3 1 Terminals 25 | . 3 . 1 7 6 5 3 . . Fabricators 3 | . . . . . 2 . 1 . . Repair Stations 2 | . . . . 1 1 . . . . Recycling Units 3 | . 1 . . . 1 . 1 . . Scanalyzers 2 | . . . 1 1 . . . . . Garrison Access 1 | . . . . . 1 . . . . Total Hacks 109 | . 11 . 13 25 27 13 10 9 1 Successful 64 | . 8 . 11 12 14 4 5 9 1 Failed 44 | . 3 . 1 13 13 9 5 . . Catastrophic 6 | . . . . 2 2 1 1 . . Database Lockouts 1 | . . . 1 . . . . . . Manual 44 | . 9 . 3 15 12 . 5 . . Terminals 67 | . 10 . 6 15 15 13 8 . . Fabricators 8 | . . . . . 7 . 1 . . Repair Stations 4 | . . . . 2 2 . . . . Recycling Units 3 | . 1 . . . 1 . 1 . . Scanalyzers 15 | . . . 7 8 . . . . . Garrison Access 2 | . . . . . 2 . . . . Terminal Hacks 27 | . 3 . 3 2 3 4 2 9 1 Record 7 | . . . . . . . . 7 . Prototype ID Bank 1 | . . . 1 . . . . . . Open Door 4 | . . . . . . 1 . 2 1 Level Access Points 1 | . . . . . 1 . . . . Branch Access Points 2 | . 1 . . 1 . . . . . Emergency Access Points 1 | . . . . . . 1 . . . Terminal Index 5 | . 1 . 1 1 1 . 1 . . Scanalyzer Index 3 | . . . 1 . 1 . 1 . . Zone Layout 1 | . 1 . . . . . . . . Garrison Registry 1 | . . . . . . 1 . . . Patrol Navigation 1 | . . . . . . 1 . . . Fabricator Hacks 2 | . . . . . 1 . 1 . . Network Status 2 | . . . . . 1 . 1 . . Repair Station Hacks 4 | . . . . 2 2 . . . . Scan Component 2 | . . . . 1 1 . . . . Repair 2 | . . . . 1 1 . . . . Recycling Unit Hacks 2 | . 1 . . . 1 . . . . Report Inventory 2 | . 1 . . . 1 . . . . Scanalyzer 11 | . . . 6 5 . . . . . Insert Component 2 | . . . 2 . . . . . . Analyze 3 | . . . 3 . . . . . . Retrieve Study 6 | . . . 1 5 . . . . . Garrison Access Hacks 1 | . . . . . 1 . . . . Unlock Access 1 | . . . . . 1 . . . . Unauthorized Hacks 17 | . 4 . 2 3 6 . 2 . . Terminals 17 | . 4 . 2 3 6 . 2 . . Assimilate 1 | . 1 . . . . . . . . Botnet 12 | . 2 . 1 3 5 . 1 . . Operators 4 | . 1 . 1 . 1 . 1 . . Fabricators . | . . . . . . . . . . Repair Stations . | . . . . . . . . . . Recycling Units . | . . . . . . . . . . Scanalyzers . | . . . . . . . . . . Garrison Access . | . . . . . . . . . . Data Cores Recovered 1 | . . . . . . . 1 . . Used . | . . . . . . . . . . Hacking Detections 30 | . 3 . 1 8 10 4 4 . . Full Trace Events 3 | . . . 1 1 . 1 . . . Feedback Events . | . . . . . . . . . . Feedback Blocked . | . . . . . . . . . . Robot Schematics Acquired . | . . . . . . . . . . Robots Built . | . . . . . . . . . . Authchips . | . . . . . . . . . . Time . | . . . . . . . . . . Total Robot Build Rating . | . . . . . . . . . . Part Schematics Acquired 2 | . . . 2 . . . . . . Parts Built . | . . . . . . . . . . Authchips . | . . . . . . . . . . Time . | . . . . . . . . . . Total Part Build Rating . | . . . . . . . . . . Part Studies Acquired 6 | . . . 1 5 . . . . . Parts Repaired 2 | . . . . 1 1 . . . . Time 64 | . . . . 26 38 . . . . Parts Recycled . | . . . . . . . . . . Recycled Matter . | . . . . . . . . . . Retrieved Matter . | . . . . . . . . . . Retrieved Components . | . . . . . . . . . . Parts Scanalyzed 2 | . . . 2 . . . . . . Part Schematics Acquired 2 | . . . 2 . . . . . . Parts Damaged . | . . . . . . . . . . Bothacking | -11 -10 -10 -9 -8 -7 -7 -7 -7 -7 ------------ Run | Yrd Mat Min Mat Mat Fac Gar Fac Low Low Used RIF Installer 1 | . . . . . . 1 . . . Robots Hacked 1 | . . . . . . . . . 1 Non-combat . | . . . . . . . . . . Combat 1 | . . . . . . . . . 1 Robot Hacks Applied 5 | . . . . . . . . . 5 scatter_targeting 1 | . . . . . . . . . 1 spike_heat 3 | . . . . . . . . . 3 disable_weapons 1 | . . . . . . . . . 1 Relay Couplers Released 18 | . . . . . . 18 . . . Machine Destruction 18 | . . . . . . 18 . . . Attached 1 | . . . . . . . . . 1 Fabnet Peak Effective % . | . . . . . . . . . . Robots Rewired 6 | . . . . . . 4 . 2 . Allies Hacked . | . . . . . . . . . . Hacks Repelled . | . . . . . . . . . . Allies | -11 -10 -10 -9 -8 -7 -7 -7 -7 -7 -------- Run | Yrd Mat Min Mat Mat Fac Gar Fac Low Low Total Allies 10 | . 1 1 . . . 6 . 2 . Largest Group 6 | . 1 1 . . . 6 5 2 2 Highest-Rated Group 277 | . 10 31 . . . 277 250 52 52 Highest-Rated Ally 95 | . 10 31 . . . 95 95 32 32 Total Orders . | . . . . . . . . . . Ally Attacks 87 | . . 3 . . . 40 27 3 14 Total Damage 3577 | . . 43 . . . 1066 1841 98 529 Kills 25 | . . . . . . 9 11 1 4 Allies Corrupted . | . . . . . . . . . . Allies Melted . | . . . . . . . . . . Intel | -11 -10 -10 -9 -8 -7 -7 -7 -7 -7 ------- Run | Yrd Mat Min Mat Mat Fac Gar Fac Low Low Active Infowar (turns) 492 | 11 480 . . . . 1 . . . Terrain 1 | . . . . . . 1 . . . Seismic 491 | 11 480 . . . . . . . . Robot Analysis Total . | . . . . . . . . . . Derelict Logs Recovered 5 | . . 1 . . . . . 2 2 Drone Launches . | . . . . . . . . . . Drone Recoveries . | . . . . . . . . . . Exploration | -11 -10 -10 -9 -8 -7 -7 -7 -7 -7 ------------- Run | Yrd Mat Min Mat Mat Fac Gar Fac Low Low Turns Passed 14707 | 86 841 477 871 1771 1582 2616 567 3727 2169 Spaces Moved 6529 | 40 496 300 438 846 765 1183 329 1306 826 Core 1 | . . . . . . . . . 1 Treads 3832 | . 50 . . 355 385 917 329 1306 490 Legs 389 | 40 268 . 78 1 . 2 . . . Wheels 2307 | . 178 300 360 490 380 264 . . 335 Hover . | . . . . . . . . . . Flight . | . . . . . . . . . . Fastest Speed 80 | 120 80 140 110 85 121 101 160 160 220 Average Speed 186 | 120 116 140 140 147 173 154 160 270 245 Slowest Speed 2450 | 120 160 140 260 305 225 735 160 320 2450 Overloaded Moves . | . . . . . . . . . . Propulsion Burnouts . | . . . . . . . . . . Robots Hopped . | . . . . . . . . . . Potential Cave-ins . | . . . . . . . . . . Cave-ins Triggered . | . . . . . . . . . . Exploration Rate (%) 53 | 3 64 49 37 67 22 94 11 95 92 Regions Visited 9 Branch Regions 3 Pre-discovered Areas 3 | . . . . . . . . 1 2 Known Exits Taken 4 | . 1 . 1 1 1 . . . . Unknown Exits Taken 4 | 1 . 1 . . . . 1 1 . Scrap Searched 6 | . . 1 . . . . . 2 3 Spaces Dug 14 | . 3 . . . 2 5 4 . . Terrain Destroyed 248 | . 3 63 24 11 29 40 6 72 . Melee 8 | . . . . . 2 5 1 . . Projectile 27 | . 3 . 3 11 1 4 5 . . AOE 213 | . . 63 21 . 26 31 . 72 . Terrain Rammed . | . . . . . . . . . . Walls Destroyed . | . . . . . . . . . . Machines Disabled . | . . . . . . . . . . Actions | -11 -10 -10 -9 -8 -7 -7 -7 -7 -7 --------- Run | Yrd Mat Min Mat Mat Fac Gar Fac Low Low Total 8152 | 56 662 333 601 1196 935 1692 351 1430 896 Wait 560 | 3 69 19 59 135 76 159 1 39 . Move 6520 | 39 495 299 437 845 764 1182 328 1305 826 Hop . | . . . . . . . . . . Pick Up 133 | 1 10 2 25 33 16 29 4 9 4 Fast Attach 26 | 1 3 . . 3 4 9 . 2 4 Attach 45 | . 5 . 9 6 4 10 1 6 4 Detach 5 | . . . 2 . . 3 . . . Swap 105 | . 14 1 13 24 12 25 1 5 10 Drop 107 | . 10 . 5 40 13 30 1 5 3 Fire 442 | 12 56 12 43 110 44 85 14 36 30 Melee 103 | . . . 8 . 2 74 1 3 15 Ram . | . . . . . . . . . . Kick . | . . . . . . . . . . Crush 16 | . . . . . . 16 . . . Escape Stasis 16 | . . . . . . 16 . . . Rewire 74 | . . . . . . 54 . 20 . Trap . | . . . . . . . . . . Miscellaneous . | . . . . . . . . . . Route ------- -11/Scrapyard -10/Materials (discovered 2 exits: *Mat / *Min) -10/Mines -9/Materials (discovered 2 exits: *Mat / [*Min]) -8/Materials (discovered 2 exits: *Fac x2) -7/Factory (discovered 5 exits: Fac x4 / Gar) -7/Garrison (discovered 3 exits: *Fac x3) -7/Factory -7/Lower Caves -7/Lower Caves (discovered 2 exits: *Fac / [*Zio]) History --------- Turn | Location | Event 1 | -11/Scrapyard | Discovered new exit (range 3) 87 | -11/Scrapyard | Entered Materials 229 | -10/Materials | Discovered new exit (range 15) 315 | -10/Materials | Build established: Mutant 497 | -10/Materials | Identified exit to Mines 581 | -10/Materials | Core integrity fell below 50% 616 | -10/Materials | Lost 7 parts (1p2n1u3w) 748 | -10/Materials | Discovered new exit (range 13) 928 | -10/Materials | Entered Mines 968 | -10/Mines | Discovered new exit (range 9) 969 | -10/Mines | Met a Derelict testing a Signal Generator 1042 | -10/Mines | Learned location of 1 exit from Materials 1077 | -10/Mines | Found a Scrap Suit stashed away for nefarious purposes 1080 | -10/Mines | Found Scrap Suit 1102 | -10/Mines | Core integrity fell below 20% 1405 | -10/Mines | Entered Materials 1405 | -9/Materials | Evolved 2 slots: Propulsion x1, Utility x1 1406 | -9/Materials | Identified exit to Materials 1516 | -9/Materials | Central database locked down 1791 | -9/Materials | Discovered new exit (range 16) 2096 | -9/Materials | Core integrity fell below 50% 2276 | -9/Materials | Entered another Materials area 2276 | -8/Materials | Evolved 2 slots: Propulsion x2 2418 | -8/Materials | Build established: Scavenger-Mutant 2732 | -8/Materials | Destroyed 7 combat bots 3214 | -8/Materials | Build established: Mutant 3410 | -8/Materials | Discovered new exit (range 16) 3460 | -8/Materials | Repaired Wheel+ 3850 | -8/Materials | Discovered new exit (range 3) 3852 | -8/Materials | Identified exit to Factory 4005 | -8/Materials | Garrison activated, responded to threat 4047 | -8/Materials | Entered Factory 4047 | -7/Factory | Evolved 2 slots: Propulsion x2 4714 | -7/Factory | Repaired Adv. Treads 5331 | -7/Factory | Identified exit to Factory 5571 | -7/Factory | Identified exit to Garrison 5629 | -7/Factory | Entered Garrison 5757 | -7/Garrison | Triggered checkpoint 5993 | -7/Garrison | Triggered checkpoint 6128 | -7/Garrison | Triggered checkpoint 6211 | -7/Garrison | Triggered checkpoint 6394 | -7/Garrison | Lost 3 parts (2n1w) 6496 | -7/Garrison | Build established: Scavenger-Mutant 6605 | -7/Garrison | Triggered checkpoint 6638 | -7/Garrison | Discovered new exit (range 12) 6861 | -7/Garrison | Discovered new exit (range 15) 7072 | -7/Garrison | Triggered checkpoint 7428 | -7/Garrison | Triggered checkpoint 7462 | -7/Garrison | Installed Relay Interface Framework 7499 | -7/Garrison | Garrison Relay disabled 7604 | -7/Garrison | Discovered new exit (range 11) 7628 | -7/Garrison | Found embedded Infiltrators 7669 | -7/Garrison | Discovered new exit (range 19) 7669 | -7/Garrison | Discovered new exit (range 59) 7669 | -7/Garrison | Discovered new exit (range 33) 7689 | -7/Garrison | Triggered checkpoint 7805 | -7/Garrison | Build established: Hauler-Mutant 7823 | -7/Garrison | Garrison Relay disabled 7849 | -7/Garrison | Garrison Relay disabled 7980 | -7/Garrison | Garrison Relay disabled 8163 | -7/Garrison | Garrison Relay disabled 8168 | -7/Garrison | Build established: Bothacker-Mutant 8245 | -7/Garrison | Entered Factory 8245 | -7/Factory | Accompanied by 6 allies 8614 | -7/Factory | Lost 3 allies 8645 | -7/Factory | First assault squad dispatched 8788 | -7/Factory | Discovered new exit (range 11) 8812 | -7/Factory | Entered Lower Caves 9217 | -7/Lower Caves | Found Prototype Device 9398 | -7/Lower Caves | Attracted the attention of an 0b10 outpost 9399 | -7/Lower Caves | Core integrity fell below 50% 9478 | -7/Lower Caves | Lost 9 parts (1p4n1u3w) 10048 | -7/Lower Caves | Discovered new exit (range 8) 10330 | -7/Lower Caves | Learned Factory stockpile data 10579 | -7/Lower Caves | Attracted the attention of an 0b10 checkpoint 10647 | -7/Lower Caves | Learned 4 Factory zone layouts 11043 | -7/Lower Caves | Learned Research stockpile data 11043 | -7/Lower Caves | Learned Research garrison access intel 11043 | -7/Lower Caves | Learned Armory garrison access intel 12539 | -7/Lower Caves | Entered another Lower Caves area 12539 | -7/Lower Caves | Accompanied by 2 allies 12546 | -7/Lower Caves | Ambushed by wild Derelicts 13901 | -7/Lower Caves | Discovered new exit (range 11) 14501 | -7/Lower Caves | Learned location of Extension (-5) 14574 | -7/Lower Caves | Spotted B-75 Beast 14639 | -7/Lower Caves | Core integrity fell below 20% 14708 | -7/Lower Caves | Destroyed by B-75 Beast with Heavy Plasma Cannon Last Messages --------------- >>spike_heat Unable to locate active power source. 14587_ Jacked B-75 Beast... >>spike_heat Unable to locate active power source. 14587_ Com. Wheel destroyed. 14588_ Jacked B-75 Beast... >>disable_weapons Deactivating 3 weapon systems. 14625_ Lgt. Treads+ destroyed. 14630_ Mak. Spear follow-up attack on B-75 Beast. 14634_ Jacked B-75 Beast... >>scatter_targeting Applied mods to targeting algorithms, effective accuracy halved. 14687_ Imp. Heavy Treads destroyed. 14688_ Dropped Prototype Device. 14689_ Acquired Prototype Device. 14704_ XOAKJAPSTMU&HBO7HC%UW Map ----- +----------------------------------------------------+ | ?????? ????????# ##???????# | | ???????????????# ##???????# | | ??????????????## ##?#####??# ###### | | ?????????????## ###### ???# #????? | | ?????????????# ##?# ???# #????? | | ###??????????# ## #### #????# #????? | | # ##???????# # ## #### #??? ????? | | ?# ??######## [## ### ### ##????? | | ??# ### ####/%## ## ####??????? | | ???# % /## ## #?????????? | | ????# % ## #?# #??????????? | | ????#### # ### #### #???????????? | | ##???### ## ###?# % #?###???????? | | ##?## ### #???# #???????? | | ### #?# ##??#### # ######## #???????? | | #?# #?????# #### ##??????# #???????? | | %* ###### *####### #???###???????# #???????? | | ### #???# ! ##?????######## #?????#?? | | ### #???# # # ####??# ##??? ##? | | ?# #???# ##### ##?# #######"##? ## | | ?# ##??# #???# # #?# #??????""# # | | ?## % #?## ##???# # ##?# #???### | | ??# % ### #???## # ## ;### ##??#"" | | ?##### ##??# % BB ####" # | | ## ### #### BB ; "" % # | | # ###### ######@ ;;### """ # | | ####### ##????# ###?#% #" # | | ## # ##?????# #???#% ## | | ###??????# ##??# % ##? | | # ### ## ##???????# #??#""" ##?? | | # #?### ## #?????? #?###"# ####??? | | # #???## ### ###???# # #??#### #?????? | | # #########?## ##? # # #????## #?????? | | ##?#### ### # #?????# #????? | | #?# #### ? ?????## ####????? | | #?## #### ? #????? #???????? | | # ####??# ##?#? #???? #???????? | | # ##???## #??? # ???? #???????? | | # ##### ##??### # ??? #???????? | | # ##???? #?#???##???????? | | ## ### #???? #???????????????? | | ### ##?## #????? ##???????????????? | | ### ##?###???####??????#????????????????? | | ########?#####???????????????????????????????????? | | ?????????????????????????????????????????????????? | | ?????????????????????????????????????????????????? | | ?????????????????????????????????????????????????? | | ?????????????????????????????????????????????????? | | ?????????????????????????????????????????????????? | | ?????????????????????????????????????????????????? | +----------------------------------------------------+ Best States ------------- Heat Dissipation 61 Energy Generation 21 Energy Capacity 315 Matter Stores 300 Matter Capacity 300 Sight Range 16 Terrain Scan Range 16 Terrain Scan Density 10 Additional Mass Support 12 Armor Coverage 150 Evasion (%) 55 Core Analysis 9 Recoil Reduction 7 Kinecelleration 40 Relay Coupler Types 1 Relay Coupler Value 9 Item Schematics ----------------- Com. Wheel | -9/Materials | Scanalyzed Hvy. Ion Engine | -9/Materials | Scanalyzed Robot Schematics ------------------ None Fabricated ------------ Nothing Repaired ---------- Wheel | 22% | -8/Materials Adv. Treads | 13% | -7/Factory Studied --------- Flight Unit | -9/Materials | Hacked Wheel | -8/Materials | Hacked Aluminum Leg | -8/Materials | Hacked Nuclear Core | -8/Materials | Hacked Plasma Cutter | -8/Materials | Hacked Lgt. Treads | -8/Materials | Hacked Alien Tech Used ----------------- None Achievements -------------- None Challenges ------------ None Game ------ Seed TacticalNuclearTrident Manual? 0 Play Time 01:29:29 Cumulative 69.4 hours Start 2026.01.08 @ 21:27:05 End 2026.01.08 @ 22:59:13 Sessions 1 Manual Loads 0 Difficulty Rogue Special Mode None Game No. 86 Rogue 86 Adventurer 0 Explorer 0 Win Type - Total 1 Types 1/0/0/0/0/0/0/0/0/0 Lore% 45 Gallery% 48 Achievement% 38 Wizard Run 0 Options --------- Layout 2 ASCII 0 Keyboard 1 Movement Numpad Keybinds 0 Fullscreen 2 Font 24/Smallcaps Map View 50x44 Zoom Use 0% Tactical HUD 1 Map Filters NONE Filters NONE Steam 1 RUN: bf260903-7295-4e74-bd73-c7512a7ca37d